[Event "Titled Tuesday Blitz March 28 Early 2023"]
[White "Kramnik, Vladimir"]
[Black "Roebers, Eline"]
[WhiteFideId "4101588"]
[BlackFideId "1058401"]
[WhiteElo "2712"]
[BlackElo "2512"]
[Result "1-0"]
[Round "01"]
[TimeControl "180+2"]
[Date "2023.03.28"]
[WhiteClock "0:00:22"]
[BlackClock "0:00:02"]

1. Nf3 {[%clk 0:02:55]}  f5 {[%clk 0:02:59]} 2. d4 {[%clk 0:02:52]}  Nf6 {[%clk 0:02:59]} 3. Bg5 {[%clk 0:02:52]}  e6 {[%clk 0:02:58]} 4. Nbd2 {[%clk 0:02:52]}  Be7 {[%clk 0:02:56]} 5. Bxf6 {[%clk 0:02:51]}  Bxf6 {[%clk 0:02:57]} 6. e4 {[%clk 0:02:51]}  d5 {[%clk 0:02:58]} 7. exf5 {[%clk 0:02:50]}  exf5 {[%clk 0:02:55]} 8. Bd3 {[%clk 0:02:48]}  O-O {[%clk 0:02:54]} 9. O-O {[%clk 0:02:48]}  b6 {[%clk 0:02:35]} 10. c3 {[%clk 0:02:47]}  Ba6 {[%clk 0:02:26]} 11. Bxa6 {[%clk 0:02:46]}  Nxa6 {[%clk 0:02:27]} 12. Re1 {[%clk 0:02:46]}  c5 {[%clk 0:02:25]} 13. Qa4 {[%clk 0:02:44]}  Qc8 {[%clk 0:01:59]} 14. Ne5 {[%clk 0:02:40]}  Re8 {[%clk 0:01:43]} 15. Ndf3 {[%clk 0:02:39]}  Re6 {[%clk 0:01:07]} 16. Nd7 {[%clk 0:02:31]}  Rd6 {[%clk 0:00:58]} 17. Nxf6+ {[%clk 0:02:30]}  Rxf6 {[%clk 0:00:59]} 18. Re5 {[%clk 0:02:28]}  Nc7 {[%clk 0:00:54]} 19. Rae1 {[%clk 0:02:27]}  Qd8 {[%clk 0:00:31]} 20. dxc5 {[%clk 0:02:21]}  bxc5 {[%clk 0:00:30]} 21. Qf4 {[%clk 0:02:21]}  Qd6 {[%clk 0:00:27]} 22. g3 {[%clk 0:02:19]}  Raf8 {[%clk 0:00:23]} 23. h4 {[%clk 0:02:15]}  Ne6 {[%clk 0:00:19]} 24. Qd2 {[%clk 0:02:07]}  Nc7 {[%clk 0:00:18]} 25. Kh2 {[%clk 0:01:42]}  Rg6 {[%clk 0:00:15]} 26. Ng5 {[%clk 0:01:36]}  h6 {[%clk 0:00:15]} 27. Nh3 {[%clk 0:01:35]}  Re6 {[%clk 0:00:14]} 28. Rxe6 {[%clk 0:01:33]}  Nxe6 {[%clk 0:00:15]} 29. Qe3 {[%clk 0:01:33]}  Rf6 {[%clk 0:00:14]} 30. Qe5 {[%clk 0:01:22]}  Qd7 {[%clk 0:00:14]} 31. Nf4 {[%clk 0:01:06]}  Nxf4 {[%clk 0:00:13]} 32. Qxf4 {[%clk 0:01:06]}  d4 {[%clk 0:00:07]} 33. cxd4 {[%clk 0:01:02]}  cxd4 {[%clk 0:00:08]} 34. Rd1 {[%clk 0:00:58]}  d3 {[%clk 0:00:08]} 35. Qc4+ {[%clk 0:00:57]}  Re6 {[%clk 0:00:08]} 36. Rxd3 {[%clk 0:00:56]}  Qf7 {[%clk 0:00:08]} 37. Rd8+ {[%clk 0:00:51]}  Kh7 {[%clk 0:00:08]} 38. Rd6 {[%clk 0:00:48]}  Re7 {[%clk 0:00:06]} 39. Qxf7 {[%clk 0:00:48]}  Rxf7 {[%clk 0:00:07]} 40. Ra6 {[%clk 0:00:46]}  f4 {[%clk 0:00:07]} 41. g4 {[%clk 0:00:46]}  g5 {[%clk 0:00:06]} 42. h5 {[%clk 0:00:45]}  Rc7 {[%clk 0:00:04]} 43. Kg2 {[%clk 0:00:44]}  Kg7 {[%clk 0:00:04]} 44. Kf3 {[%clk 0:00:44]}  Kh7 {[%clk 0:00:04]} 45. Ke4 {[%clk 0:00:44]}  Re7+ {[%clk 0:00:04]} 46. Kf5 {[%clk 0:00:43]}  f3 {[%clk 0:00:02]} 47. b4 {[%clk 0:00:38]}  Re2 {[%clk 0:00:03]} 48. Rxa7+ {[%clk 0:00:38]}  Kg8 {[%clk 0:00:03]} 49. Kg6 {[%clk 0:00:37]}  Re6+ {[%clk 0:00:03]} 50. Kf5 {[%clk 0:00:36]}  Re2 {[%clk 0:00:04]} 51. Kf6 {[%clk 0:00:30]}  Rxf2 {[%clk 0:00:04]} 52. Kg6 {[%clk 0:00:26]}  Kf8 {[%clk 0:00:03]} 53. Rf7+ {[%clk 0:00:26]}  Ke8 {[%clk 0:00:03]} 54. a4 {[%clk 0:00:26]}  Rf1 {[%clk 0:00:03]} 55. a5 {[%clk 0:00:25]}  Rb1 {[%clk 0:00:01]} 56. Rxf3 {[%clk 0:00:24]}  Rxb4 {[%clk 0:00:02]} 57. Ra3 {[%clk 0:00:22]} 1-0


[Site "https://www.chess.com"]

[Event "Titled Tuesday Blitz March 28 Early 2023"]
[White "Makhnev, Denis"]
[Black "Sonnenschein, Philipp"]
[WhiteFideId "13707647"]
[BlackFideId "16250877"]
[WhiteElo "2525"]
[BlackElo "2224"]
[Result "1-0"]
[Round "01"]
[TimeControl "180+2"]
[Date "2023.03.28"]
[WhiteClock "0:01:47"]
[BlackClock "0:01:17"]

1. d4 {[%clk 0:02:56]}  Nf6 {[%clk 0:02:59]} 2. c4 {[%clk 0:02:56]}  e6 {[%clk 0:03:00]} 3. Nf3 {[%clk 0:02:56]}  d5 {[%clk 0:02:59]} 4. Nc3 {[%clk 0:02:57]}  Bb4 {[%clk 0:02:58]} 5. Qa4+ {[%clk 0:02:56]}  Nc6 {[%clk 0:02:58]} 6. e3 {[%clk 0:02:57]}  O-O {[%clk 0:02:58]} 7. Qc2 {[%clk 0:02:57]}  dxc4 {[%clk 0:02:57]} 8. Bxc4 {[%clk 0:02:57]}  a6 {[%clk 0:02:57]} 9. O-O {[%clk 0:02:57]}  Bd6 {[%clk 0:02:55]} 10. a3 {[%clk 0:02:56]}  b5 {[%clk 0:02:54]} 11. Bd3 {[%clk 0:02:55]}  Bb7 {[%clk 0:02:53]} 12. Ne4 {[%clk 0:02:55]}  g6 {[%clk 0:02:41]} 13. Bd2 {[%clk 0:02:44]}  Nd5 {[%clk 0:02:24]} 14. Rfc1 {[%clk 0:02:42]}  Nce7 {[%clk 0:02:18]} 15. Nc5 {[%clk 0:02:41]}  Bc8 {[%clk 0:02:14]} 16. e4 {[%clk 0:02:28]}  Nb6 {[%clk 0:02:12]} 17. Nb3 {[%clk 0:02:22]}  c6 {[%clk 0:02:06]} 18. Bb4 {[%clk 0:02:17]}  f5 {[%clk 0:01:55]} 19. Bxd6 {[%clk 0:01:59]}  Qxd6 {[%clk 0:01:55]} 20. Re1 {[%clk 0:02:00]}  fxe4 {[%clk 0:01:49]} 21. Bxe4 {[%clk 0:01:59]}  Nbd5 {[%clk 0:01:45]} 22. Ne5 {[%clk 0:01:59]}  Nf5 {[%clk 0:01:41]} 23. Qxc6 {[%clk 0:01:50]}  Ra7 {[%clk 0:01:25]} 24. Bxf5 {[%clk 0:01:47]}  Qxc6 {[%clk 0:01:18]} 25. Nxc6 {[%clk 0:01:47]}  Rc7 {[%clk 0:01:18]} 26. Bxe6+ {[%clk 0:01:48]}  Bxe6 {[%clk 0:01:17]} 27. Rxe6 {[%clk 0:01:48]}  Nf4 {[%clk 0:01:17]} 28. Rd6 {[%clk 0:01:47]} 1-0


[Site "https://www.chess.com"]

[Event "Titled Tuesday Blitz March 28 Early 2023"]
[White "Jumanov, Elbek"]
[Black "Makarian, Rudik"]
[WhiteFideId "14202905"]
[BlackFideId "44105681"]
[WhiteElo "2055"]
[BlackElo "2436"]
[Result "0-1"]
[Round "01"]
[TimeControl "180+2"]
[Date "2023.03.28"]
[WhiteClock "0:00:02"]
[BlackClock "0:00:16"]

1. c4 {[%clk 0:03:00]}  Nf6 {[%clk 0:02:59]} 2. Nf3 {[%clk 0:02:55]}  e6 {[%clk 0:02:59]} 3. g3 {[%clk 0:02:55]}  d5 {[%clk 0:03:00]} 4. d4 {[%clk 0:02:55]}  Bb4+ {[%clk 0:02:59]} 5. Bd2 {[%clk 0:02:54]}  Be7 {[%clk 0:03:00]} 6. Bg2 {[%clk 0:02:55]}  O-O {[%clk 0:03:00]} 7. O-O {[%clk 0:02:56]}  Nbd7 {[%clk 0:03:00]} 8. Bf4 {[%clk 0:02:53]}  c6 {[%clk 0:03:00]} 9. Nc3 {[%clk 0:02:51]}  dxc4 {[%clk 0:02:56]} 10. e4 {[%clk 0:02:50]}  b5 {[%clk 0:02:43]} 11. Qe2 {[%clk 0:02:49]}  a5 {[%clk 0:02:28]} 12. e5 {[%clk 0:01:59]}  Nd5 {[%clk 0:02:26]} 13. Ne4 {[%clk 0:01:59]}  Nxf4 {[%clk 0:02:18]} 14. gxf4 {[%clk 0:01:59]}  Qb6 {[%clk 0:02:14]} 15. Kh1 {[%clk 0:01:44]}  Bb7 {[%clk 0:02:14]} 16. f5 {[%clk 0:01:20]}  exf5 {[%clk 0:02:12]} 17. Ng3 {[%clk 0:01:14]}  g6 {[%clk 0:02:12]} 18. e6 {[%clk 0:01:13]}  Bf6 {[%clk 0:01:49]} 19. exd7 {[%clk 0:01:11]}  Rad8 {[%clk 0:01:50]} 20. Ne5 {[%clk 0:01:05]}  Qxd4 {[%clk 0:01:38]} 21. Nxc6 {[%clk 0:01:05]}  Bxc6 {[%clk 0:01:37]} 22. Bxc6 {[%clk 0:01:06]}  Qc5 {[%clk 0:01:36]} 23. Qf3 {[%clk 0:01:03]}  Bxb2 {[%clk 0:01:36]} 24. Rad1 {[%clk 0:00:54]}  c3 {[%clk 0:01:35]} 25. Ne2 {[%clk 0:00:47]}  c2 {[%clk 0:01:17]} 26. Rde1 {[%clk 0:00:40]}  Rb8 {[%clk 0:01:01]} 27. Nc1 {[%clk 0:00:40]}  Bxc1 {[%clk 0:00:57]} 28. Rxc1 {[%clk 0:00:39]}  Rb6 {[%clk 0:00:57]} 29. Bd5 {[%clk 0:00:33]}  a4 {[%clk 0:00:48]} 30. Bb7 {[%clk 0:00:24]}  b4 {[%clk 0:00:30]} 31. Qd3 {[%clk 0:00:24]}  b3 {[%clk 0:00:24]} 32. axb3 {[%clk 0:00:21]}  axb3 {[%clk 0:00:25]} 33. d8=Q {[%clk 0:00:21]}  Rxd8 {[%clk 0:00:26]} 34. Qxd8+ {[%clk 0:00:21]}  Kg7 {[%clk 0:00:27]} 35. Qd5 {[%clk 0:00:19]}  Qb4 {[%clk 0:00:23]} 36. Qe5+ {[%clk 0:00:18]}  Kh6 {[%clk 0:00:23]} 37. Qe3+ {[%clk 0:00:16]}  f4 {[%clk 0:00:22]} 38. Qh3+ {[%clk 0:00:15]}  Kg7 {[%clk 0:00:23]} 39. Be4 {[%clk 0:00:15]}  Qxe4+ {[%clk 0:00:22]} 40. f3 {[%clk 0:00:14]}  Qc4 {[%clk 0:00:20]} 41. Qg2 {[%clk 0:00:13]}  b2 {[%clk 0:00:17]} 42. Rxc2 {[%clk 0:00:14]}  Qxf1+ {[%clk 0:00:16]} 43. Qxf1 {[%clk 0:00:13]}  b1=Q {[%clk 0:00:17]} 44. Rc1 {[%clk 0:00:12]}  Qf5 {[%clk 0:00:16]} 45. Rc4 {[%clk 0:00:11]}  Rb1 {[%clk 0:00:15]} 46. Rc1 {[%clk 0:00:12]}  Rxc1 {[%clk 0:00:15]} 47. Qxc1 {[%clk 0:00:12]}  h5 {[%clk 0:00:16]} 48. Qc3+ {[%clk 0:00:12]}  Qf6 {[%clk 0:00:17]} 49. Qc4 {[%clk 0:00:11]}  g5 {[%clk 0:00:17]} 50. Kg2 {[%clk 0:00:11]}  Qe5 {[%clk 0:00:18]} 51. Qd3 {[%clk 0:00:11]}  g4 {[%clk 0:00:16]} 52. Qd1 {[%clk 0:00:09]}  Qb2+ {[%clk 0:00:15]} 53. Kg1 {[%clk 0:00:09]}  g3 {[%clk 0:00:14]} 54. hxg3 {[%clk 0:00:05]}  fxg3 {[%clk 0:00:15]} 55. Qe1 {[%clk 0:00:03]}  Qh2+ {[%clk 0:00:15]} 56. Kf1 {[%clk 0:00:02]}  g2+ {[%clk 0:00:16]} 0-1


[Site "https://www.chess.com"]

[Event "Titled Tuesday Blitz March 28 Early 2023"]
[White "Rom, Jasper"]
[Black "Bacrot, Etienne"]
[WhiteFideId "2023733"]
[BlackFideId "605506"]
[WhiteElo "2233"]
[BlackElo "2663"]
[Result "0-1"]
[Round "01"]
[TimeControl "180+2"]
[Date "2023.03.28"]
[WhiteClock "0:00:08"]
[BlackClock "0:00:08"]

1. e4 {[%clk 0:02:55]}  c5 {[%clk 0:02:21]} 2. Nc3 {[%clk 0:02:55]}  Nc6 {[%clk 0:02:19]} 3. f4 {[%clk 0:02:55]}  g6 {[%clk 0:02:19]} 4. Nf3 {[%clk 0:02:56]}  Bg7 {[%clk 0:02:19]} 5. Bb5 {[%clk 0:02:56]}  Nd4 {[%clk 0:02:19]} 6. O-O {[%clk 0:02:57]}  a6 {[%clk 0:02:18]} 7. Bc4 {[%clk 0:02:56]}  e6 {[%clk 0:02:18]} 8. d3 {[%clk 0:02:56]}  Ne7 {[%clk 0:02:18]} 9. Bb3 {[%clk 0:02:54]}  b5 {[%clk 0:02:18]} 10. Nxd4 {[%clk 0:02:54]}  cxd4 {[%clk 0:02:17]} 11. Ne2 {[%clk 0:02:55]}  Bb7 {[%clk 0:02:18]} 12. Qe1 {[%clk 0:02:55]}  O-O {[%clk 0:02:18]} 13. Qf2 {[%clk 0:02:55]}  Nc6 {[%clk 0:02:10]} 14. f5 {[%clk 0:02:53]}  exf5 {[%clk 0:02:09]} 15. exf5 {[%clk 0:02:53]}  d5 {[%clk 0:02:00]} 16. f6 {[%clk 0:02:48]}  Bh8 {[%clk 0:02:00]} 17. Bh6 {[%clk 0:02:47]}  Re8 {[%clk 0:02:00]} 18. Ng3 {[%clk 0:02:47]}  Qd6 {[%clk 0:01:48]} 19. Nh5 {[%clk 0:02:35]}  Re5 {[%clk 0:01:13]} 20. Bf4 {[%clk 0:02:14]}  gxh5 {[%clk 0:01:07]} 21. Qg3+ {[%clk 0:02:13]}  Kf8 {[%clk 0:01:07]} 22. Bh6+ {[%clk 0:02:13]}  Ke8 {[%clk 0:01:07]} 23. Qg8+ {[%clk 0:02:14]}  Kd7 {[%clk 0:01:06]} 24. Qxf7+ {[%clk 0:02:14]}  Ne7 {[%clk 0:01:07]} 25. fxe7 {[%clk 0:02:01]}  Rxe7 {[%clk 0:01:02]} 26. Qf5+ {[%clk 0:02:00]}  Qe6 {[%clk 0:00:48]} 27. Bg5 {[%clk 0:01:55]}  Qxf5 {[%clk 0:00:27]} 28. Rxf5 {[%clk 0:01:56]}  Rg7 {[%clk 0:00:27]} 29. Raf1 {[%clk 0:01:30]}  Rag8 {[%clk 0:00:25]} 30. h4 {[%clk 0:01:21]}  h6 {[%clk 0:00:24]} 31. Rf7+ {[%clk 0:01:21]}  Ke8 {[%clk 0:00:24]} 32. Rxg7 {[%clk 0:01:17]}  Bxg7 {[%clk 0:00:24]} 33. Bf4 {[%clk 0:01:04]}  Kd7 {[%clk 0:00:18]} 34. g3 {[%clk 0:01:00]}  Re8 {[%clk 0:00:17]} 35. Kf2 {[%clk 0:00:57]}  Bc6 {[%clk 0:00:17]} 36. Kf3 {[%clk 0:00:39]}  a5 {[%clk 0:00:17]} 37. a3 {[%clk 0:00:37]}  a4 {[%clk 0:00:17]} 38. Ba2 {[%clk 0:00:37]}  Bf8 {[%clk 0:00:11]} 39. Rg1 {[%clk 0:00:35]}  Re6 {[%clk 0:00:10]} 40. g4 {[%clk 0:00:35]}  hxg4+ {[%clk 0:00:10]} 41. Rxg4 {[%clk 0:00:35]}  Rf6 {[%clk 0:00:11]} 42. Kg3 {[%clk 0:00:34]}  Ke6 {[%clk 0:00:11]} 43. Bd2 {[%clk 0:00:23]}  Bd6+ {[%clk 0:00:09]} 44. Kg2 {[%clk 0:00:23]}  Kf7 {[%clk 0:00:09]} 45. Rxd4 {[%clk 0:00:18]}  Be5 {[%clk 0:00:08]} 46. Rg4 {[%clk 0:00:16]}  Bxb2 {[%clk 0:00:08]} 47. Bb4 {[%clk 0:00:17]}  Be5 {[%clk 0:00:07]} 48. Bc5 {[%clk 0:00:13]}  Rg6 {[%clk 0:00:07]} 49. Rxg6 {[%clk 0:00:12]}  Kxg6 {[%clk 0:00:08]} 50. d4 {[%clk 0:00:12]}  Bf6 {[%clk 0:00:08]} 51. Kf3 {[%clk 0:00:12]}  Bxh4 {[%clk 0:00:08]} 52. c3 {[%clk 0:00:12]}  Bf6 {[%clk 0:00:08]} 53. Kg4 {[%clk 0:00:13]}  h5+ {[%clk 0:00:08]} 54. Kf4 {[%clk 0:00:13]}  h4 {[%clk 0:00:06]} 55. Bb1+ {[%clk 0:00:12]}  Kg7 {[%clk 0:00:06]} 56. Bf5 {[%clk 0:00:13]}  Kf7 {[%clk 0:00:06]} 57. Kg4 {[%clk 0:00:11]}  Ke8 {[%clk 0:00:06]} 58. Bb4 {[%clk 0:00:11]}  Bd7 {[%clk 0:00:07]} 59. Bxd7+ {[%clk 0:00:10]}  Kxd7 {[%clk 0:00:07]} 60. Bc5 {[%clk 0:00:10]}  Ke6 {[%clk 0:00:07]} 61. Bb4 {[%clk 0:00:10]}  h3 {[%clk 0:00:07]} 62. Kxh3 {[%clk 0:00:09]}  Kf5 {[%clk 0:00:08]} 63. Kg3 {[%clk 0:00:09]}  Ke4 {[%clk 0:00:08]} 64. Kg4 {[%clk 0:00:10]}  Bd8 {[%clk 0:00:08]} 65. Kh5 {[%clk 0:00:10]}  Kd3 {[%clk 0:00:08]} 66. Kg6 {[%clk 0:00:10]}  Kc4 {[%clk 0:00:09]} 67. Kf5 {[%clk 0:00:10]}  Bh4 {[%clk 0:00:09]} 68. Ke6 {[%clk 0:00:11]}  Be1 {[%clk 0:00:09]} 69. Kd6 {[%clk 0:00:11]}  Bxc3 {[%clk 0:00:09]} 70. Bxc3 {[%clk 0:00:11]}  Kxc3 {[%clk 0:00:09]} 71. Kxd5 {[%clk 0:00:09]}  b4 {[%clk 0:00:10]} 72. axb4 {[%clk 0:00:08]}  a3 {[%clk 0:00:10]} 73. b5 {[%clk 0:00:09]}  a2 {[%clk 0:00:11]} 74. b6 {[%clk 0:00:10]}  a1=Q {[%clk 0:00:12]} 75. b7 {[%clk 0:00:09]}  Qa7 {[%clk 0:00:11]} 76. Kc6 {[%clk 0:00:08]}  Qb8 {[%clk 0:00:07]} 77. d5 {[%clk 0:00:07]}  Kb4 {[%clk 0:00:08]} 78. d6 {[%clk 0:00:07]}  Ka5 {[%clk 0:00:08]} 79. d7 {[%clk 0:00:08]}  Ka6 {[%clk 0:00:08]} 0-1


[Site "https://www.chess.com"]

[Event "Titled Tuesday Blitz March 28 Early 2023"]
[White "Xu, Xiangyu"]
[Black "Jaskolka, Tomasz"]
[WhiteFideId "8608288"]
[BlackFideId "1170791"]
[WhiteElo "2477"]
[BlackElo "2155"]
[Result "1-0"]
[Round "01"]
[TimeControl "180+2"]
[Date "2023.03.28"]
[WhiteClock "0:00:25"]
[BlackClock "0:00:07"]

1. d4 {[%clk 0:02:55]}  d5 {[%clk 0:02:59]} 2. c4 {[%clk 0:02:56]}  e5 {[%clk 0:03:00]} 3. dxe5 {[%clk 0:02:55]}  d4 {[%clk 0:03:00]} 4. Nf3 {[%clk 0:02:56]}  Nc6 {[%clk 0:03:01]} 5. a3 {[%clk 0:02:55]}  a5 {[%clk 0:03:01]} 6. e3 {[%clk 0:02:55]}  Bc5 {[%clk 0:02:59]} 7. exd4 {[%clk 0:02:55]}  Bxd4 {[%clk 0:02:44]} 8. Nxd4 {[%clk 0:02:54]}  Qxd4 {[%clk 0:02:44]} 9. Nc3 {[%clk 0:02:40]}  Qxd1+ {[%clk 0:02:23]} 10. Nxd1 {[%clk 0:02:38]}  Nxe5 {[%clk 0:02:23]} 11. Bf4 {[%clk 0:02:38]}  f6 {[%clk 0:02:16]} 12. Nc3 {[%clk 0:02:38]}  Ne7 {[%clk 0:02:15]} 13. Nb5 {[%clk 0:02:37]}  Kf7 {[%clk 0:01:53]} 14. Nxc7 {[%clk 0:02:36]}  Rb8 {[%clk 0:01:53]} 15. Bxe5 {[%clk 0:02:35]}  fxe5 {[%clk 0:01:53]} 16. Be2 {[%clk 0:02:29]}  Bd7 {[%clk 0:01:34]} 17. Rd1 {[%clk 0:02:28]}  Bc6 {[%clk 0:01:34]} 18. Bg4 {[%clk 0:02:23]}  Bxg2 {[%clk 0:01:20]} 19. Rg1 {[%clk 0:02:23]}  Bc6 {[%clk 0:01:20]} 20. Be6+ {[%clk 0:02:22]}  Kf6 {[%clk 0:01:20]} 21. Rd3 {[%clk 0:01:43]}  Rhd8 {[%clk 0:01:01]} 22. Rgg3 {[%clk 0:01:39]}  Ng6 {[%clk 0:00:53]} 23. Bd5 {[%clk 0:01:00]}  Nf4 {[%clk 0:00:51]} 24. Rb3 {[%clk 0:00:59]}  Rbc8 {[%clk 0:00:32]} 25. Bxc6 {[%clk 0:00:58]}  bxc6 {[%clk 0:00:32]} 26. Na6 {[%clk 0:00:57]}  Rd4 {[%clk 0:00:31]} 27. Rb8 {[%clk 0:00:37]}  Rxb8 {[%clk 0:00:25]} 28. Nxb8 {[%clk 0:00:38]}  Rxc4 {[%clk 0:00:24]} 29. Kd2 {[%clk 0:00:37]}  Rd4+ {[%clk 0:00:24]} 30. Kc2 {[%clk 0:00:35]}  Rc4+ {[%clk 0:00:24]} 31. Kb1 {[%clk 0:00:35]}  g5 {[%clk 0:00:21]} 32. Nd7+ {[%clk 0:00:34]}  Kf5 {[%clk 0:00:21]} 33. Re3 {[%clk 0:00:30]}  e4 {[%clk 0:00:17]} 34. Nb8 {[%clk 0:00:29]}  Nd3 {[%clk 0:00:17]} 35. f3 {[%clk 0:00:26]}  Rc1+ {[%clk 0:00:17]} 36. Ka2 {[%clk 0:00:26]}  Kf4 {[%clk 0:00:10]} 37. Rxe4+ {[%clk 0:00:26]}  Kxf3 {[%clk 0:00:11]} 38. Rd4 {[%clk 0:00:25]}  Rd1 {[%clk 0:00:12]} 39. Nxc6 {[%clk 0:00:21]}  Nc1+ {[%clk 0:00:12]} 40. Kb1 {[%clk 0:00:21]}  Nd3+ {[%clk 0:00:07]} 41. Kc2 {[%clk 0:00:20]}  Rc1+ {[%clk 0:00:07]} 42. Kxd3 {[%clk 0:00:20]}  Rxc6 {[%clk 0:00:08]} 43. Rd5 {[%clk 0:00:20]}  g4 {[%clk 0:00:07]} 44. Rh5 {[%clk 0:00:21]}  Rd6+ {[%clk 0:00:07]} 45. Kc4 {[%clk 0:00:21]}  Rb6 {[%clk 0:00:07]} 46. b3 {[%clk 0:00:21]}  Rb7 {[%clk 0:00:07]} 47. Rxa5 {[%clk 0:00:20]}  Rc7+ {[%clk 0:00:08]} 48. Kd4 {[%clk 0:00:20]}  Rd7+ {[%clk 0:00:07]} 49. Kc3 {[%clk 0:00:21]}  Rc7+ {[%clk 0:00:07]} 50. Kb2 {[%clk 0:00:21]}  Kg2 {[%clk 0:00:03]} 51. Rh5 {[%clk 0:00:22]}  Rf7 {[%clk 0:00:03]} 52. a4 {[%clk 0:00:21]}  Rf2+ {[%clk 0:00:03]} 53. Ka3 {[%clk 0:00:22]}  Rf3 {[%clk 0:00:03]} 54. a5 {[%clk 0:00:22]}  Rh3 {[%clk 0:00:04]} 55. Rg5 {[%clk 0:00:22]}  Rh4 {[%clk 0:00:04]} 56. a6 {[%clk 0:00:22]}  Kxh2 {[%clk 0:00:04]} 57. a7 {[%clk 0:00:22]}  Kg3 {[%clk 0:00:03]} 58. a8=Q {[%clk 0:00:22]}  Rh2 {[%clk 0:00:04]} 59. Qb8+ {[%clk 0:00:22]}  Kh3 {[%clk 0:00:04]} 60. Rh5+ {[%clk 0:00:22]}  Kg2 {[%clk 0:00:04]} 61. Qxh2+ {[%clk 0:00:23]}  Kf3 {[%clk 0:00:05]} 62. Rf5+ {[%clk 0:00:24]}  Ke4 {[%clk 0:00:06]} 63. Qf4+ {[%clk 0:00:24]}  Kd3 {[%clk 0:00:06]} 64. Rd5+ {[%clk 0:00:25]}  Kc2 {[%clk 0:00:07]} 1-0


[Site "https://www.chess.com"]

[Event "Titled Tuesday Blitz March 28 Early 2023"]
[White "Tanmay Jain"]
[Black "Drygalov, Andrey"]
[WhiteFideId "45015481"]
[BlackFideId "24171735"]
[WhiteElo "2032"]
[BlackElo "2471"]
[Result "0-1"]
[Round "01"]
[TimeControl "180+2"]
[Date "2023.03.28"]
[WhiteClock "0:00:14"]
[BlackClock "0:00:30"]

1. e4 {[%clk 0:02:59]}  c5 {[%clk 0:03:00]} 2. Nf3 {[%clk 0:02:59]}  d6 {[%clk 0:03:00]} 3. d4 {[%clk 0:02:58]}  cxd4 {[%clk 0:03:01]} 4. Nxd4 {[%clk 0:02:59]}  Nf6 {[%clk 0:03:02]} 5. Nc3 {[%clk 0:03:00]}  a6 {[%clk 0:03:02]} 6. g3 {[%clk 0:02:59]}  e5 {[%clk 0:03:02]} 7. Nb3 {[%clk 0:02:59]}  Be7 {[%clk 0:03:03]} 8. Bg2 {[%clk 0:03:00]}  O-O {[%clk 0:03:01]} 9. O-O {[%clk 0:03:00]}  Be6 {[%clk 0:03:01]} 10. Bg5 {[%clk 0:02:58]}  Nbd7 {[%clk 0:03:01]} 11. Qd2 {[%clk 0:02:56]}  b5 {[%clk 0:03:00]} 12. a3 {[%clk 0:02:55]}  Nb6 {[%clk 0:02:59]} 13. Na5 {[%clk 0:02:53]}  Qc7 {[%clk 0:02:54]} 14. Bxf6 {[%clk 0:02:43]}  Bxf6 {[%clk 0:02:54]} 15. Nd5 {[%clk 0:02:43]}  Bxd5 {[%clk 0:02:17]} 16. exd5 {[%clk 0:02:40]}  e4 {[%clk 0:02:18]} 17. c3 {[%clk 0:02:14]}  Rfe8 {[%clk 0:02:17]} 18. Rfe1 {[%clk 0:01:59]}  Na4 {[%clk 0:02:14]} 19. Nc6 {[%clk 0:01:54]}  Nc5 {[%clk 0:02:14]} 20. Qc2 {[%clk 0:01:48]}  e3 {[%clk 0:02:04]} 21. fxe3 {[%clk 0:01:43]}  Bg5 {[%clk 0:02:04]} 22. e4 {[%clk 0:01:41]}  g6 {[%clk 0:02:05]} 23. b4 {[%clk 0:01:36]}  Nd7 {[%clk 0:02:05]} 24. c4 {[%clk 0:01:35]}  bxc4 {[%clk 0:01:49]} 25. Qxc4 {[%clk 0:01:35]}  Qb6+ {[%clk 0:01:49]} 26. Kh1 {[%clk 0:01:34]}  Ne5 {[%clk 0:01:49]} 27. Nxe5 {[%clk 0:01:32]}  Rxe5 {[%clk 0:01:49]} 28. Ra2 {[%clk 0:01:25]}  a5 {[%clk 0:01:36]} 29. Rb2 {[%clk 0:01:12]}  axb4 {[%clk 0:01:35]} 30. axb4 {[%clk 0:01:04]}  Ree8 {[%clk 0:01:32]} 31. Bh3 {[%clk 0:00:46]}  Bf6 {[%clk 0:01:27]} 32. Rbe2 {[%clk 0:00:45]}  Be5 {[%clk 0:01:27]} 33. Rb1 {[%clk 0:00:38]}  h5 {[%clk 0:01:26]} 34. Rf1 {[%clk 0:00:36]}  Rab8 {[%clk 0:01:19]} 35. Ref2 {[%clk 0:00:35]}  Re7 {[%clk 0:01:13]} 36. Ra2 {[%clk 0:00:22]}  Qxb4 {[%clk 0:01:05]} 37. Qxb4 {[%clk 0:00:23]}  Rxb4 {[%clk 0:01:05]} 38. Bg2 {[%clk 0:00:24]}  Kg7 {[%clk 0:01:05]} 39. Rc2 {[%clk 0:00:21]}  Ra7 {[%clk 0:01:00]} 40. Rd1 {[%clk 0:00:21]}  Rb8 {[%clk 0:00:57]} 41. Rf1 {[%clk 0:00:21]}  Rb3 {[%clk 0:00:47]} 42. Bf3 {[%clk 0:00:20]}  h4 {[%clk 0:00:39]} 43. Kg2 {[%clk 0:00:21]}  hxg3 {[%clk 0:00:39]} 44. hxg3 {[%clk 0:00:22]}  Raa3 {[%clk 0:00:39]} 45. Rc7 {[%clk 0:00:18]}  Rc3 {[%clk 0:00:33]} 46. Rxc3 {[%clk 0:00:17]}  Rxc3 {[%clk 0:00:34]} 47. Rf2 {[%clk 0:00:17]}  Bd4 {[%clk 0:00:34]} 48. Re2 {[%clk 0:00:18]}  Kf6 {[%clk 0:00:34]} 49. Ra2 {[%clk 0:00:18]}  Ke5 {[%clk 0:00:33]} 50. Re2 {[%clk 0:00:17]}  Kf6 {[%clk 0:00:32]} 51. Ra2 {[%clk 0:00:18]}  Be5 {[%clk 0:00:31]} 52. Re2 {[%clk 0:00:18]}  Kg7 {[%clk 0:00:31]} 53. Ra2 {[%clk 0:00:18]}  g5 {[%clk 0:00:31]} 54. Re2 {[%clk 0:00:18]}  g4 {[%clk 0:00:31]} 55. Bxg4 {[%clk 0:00:12]}  Rxg3+ {[%clk 0:00:32]} 56. Kf1 {[%clk 0:00:12]}  Rxg4 {[%clk 0:00:32]} 57. Ke1 {[%clk 0:00:13]}  Kf6 {[%clk 0:00:29]} 58. Kd2 {[%clk 0:00:13]}  Bf4+ {[%clk 0:00:29]} 59. Kd3 {[%clk 0:00:14]}  Ke5 {[%clk 0:00:29]} 60. Ra2 {[%clk 0:00:14]}  Rg3+ {[%clk 0:00:30]} 0-1


[Site "https://www.chess.com"]